fUSD/lending_fUSD_20250512
["ID","MTS","AMOUNT","RATE_DAILY","PERIOD"]
[360824455,1747044632559,-250.0,0.00013325,2]
[360824456,1747044632568,-1222.32758353,0.000134,2]
[360824457,1747044632578,-800.0,0.000134,4]
[360824458,1747044632587,-1600.0,0.000135,4]
[360824459,1747044632596,-552.0,0.00013525,2]
[360824460,1747044632605,-1456.0,0.00013525,2]
[360824461,1747044632616,-576.0,0.00013525,2]
[360824462,1747044632626,-918.0,0.00013525,2]
[360824463,1747044632635,-1249.0,0.00013525,2]
[360824464,1747044632644,-1146.0,0.00013528,2]
[360824465,1747044632654,-5939.0,0.00013528,2]
[360824466,1747044632663,-6818.0,0.00013528,2]
[360824467,1747044632672,-154.0,0.00013528,2]
[360824468,1747044632682,-4029.0,0.00013528,2]
[360824469,1747044632691,-4000.0,0.0001358,2]
[360824470,1747044632701,-504.21914787,0.00013584,2]
[360824471,1747044632710,-504.21914782,0.00013586,2]
[360824472,1747044632720,-504.21914782,0.00013587,2]
[360824473,1747044632729,-2278.8221,0.00013588,2]
[360824474,1747044632740,-504.21914782,0.00013589,2]
[360824475,1747044632750,-504.21914782,0.0001359,2]
[360824476,1747044632760,-504.21914782,0.00013592,2]
[360824477,1747044632769,-504.21914782,0.00013593,2]
[360824478,1747044633022,-504.21914782,0.00013595,2]
[360824479,1747044633033,-504.21914782,0.00013596,2]
[360824480,1747044633043,-1000.0,0.00013597,2]
[360824481,1747044633053,-2298.3589,0.00013597,2]
[360824482,1747044633062,-998.471,0.00013598,2]
[360824483,1747044633072,-163.5799885,0.00013598,2]
[360824484,1747044633081,-163.78282337,0.00013598,2]
[360824485,1747044633090,-192.26756628,0.00013598,2]
[360824486,1747044633099,-369.4904005,0.00013598,2]
[360824487,1747044633111,-504.21914782,0.00013598,2]
[360824488,1747044633121,-4010.20604474,0.00013598,2]
[360824489,1747044633130,-2400.0,0.000136,4]
[360824490,1747044633140,-239.76,0.0001361,2]
[360824491,1747044633150,-575.128074,0.00013629,2]
[360824492,1747044633160,-4000.0,0.0001365,2]
[360824493,1747044633170,-500.0,0.00013673,2]
[360824494,1747044633179,-500.0,0.00013673,2]
[360824495,1747044633189,-500.0,0.00013673,2]
[360824496,1747044633198,-500.0,0.00013673,2]
[360824497,1747044633208,-150.0,0.00013683,2]
[360824498,1747044633217,-150.0,0.00013683,2]
[360824499,1747044633226,-150.0,0.00013683,2]
[360824500,1747044633236,-150.0,0.00013683,2]
[360824501,1747044633245,-150.0,0.00013683,2]
[360824502,1747044633255,-150.0,0.00013683,2]
[360824503,1747044633264,-1304.0,0.00013683,2]
[360824504,1747044633274,-930.0,0.00013683,2]
[360824505,1747044633283,-628.0,0.00013683,2]
[360824506,1747044633292,-798.0,0.00013683,2]
[360824507,1747044633302,-37279.2932988,0.00013684,2]
[360824508,1747044633312,-350.0,0.00013684,2]
[360824509,1747044633321,-4000.0,0.00013684,2]
[360824510,1747044633331,-4000.0,0.00013684,2]
[360824511,1747044633340,-17031.1362018,0.00013688,2]
[360824512,1747044633350,-2297.82397274,0.0001369,2]
[360824513,1747044633361,-75410.98451042,0.00013697,2]
[360824514,1747044633371,-200.09503612,0.00013697,3]
[360824515,1747044633382,-1304.53335216,0.00013697,3]
[360824516,1747044633393,-1304.53335216,0.00013697,3]
[360824517,1747044633403,-1304.53335217,0.00013697,3]
[360824518,1747044633413,-963.3593,0.00013697,2]
[360824519,1747044633423,-1554.36474846,0.00013698,2]
[360824520,1747044633432,-94167.93844839,0.00013698,2]
[360824521,1747044633696,-2779.39679894,0.00013698,2]
[360824522,1747044633708,-1084.12496263,0.00013698,2]
[360824530,1747044637857,-836.0,0.00013528,2]
[360824531,1747044637869,-9897.71368094,0.00013698,2]
[360824551,1747044640707,-0.00116807,0.00013528,2]
[360824552,1747044640720,-878.99883193,0.00013528,2]
[360824553,1747044640729,-5861.51940129,0.00013698,2]
[360824554,1747044640777,-3978.62875117,0.00013698,2]
[360824561,1747044643004,-52358.40063516,0.00013698,2]
[360824562,1747044643016,-8902.750001,0.00013698,2]
[360824565,1747044643384,-146202.60932993,0.00013698,2]
[360824566,1747044643394,-150.0,0.00013698,2]
[360824567,1747044643403,-2790.10940676,0.00013698,2]
[360824568,1747044643412,-400.0,0.00013698,2]
[360824569,1747044643421,-300.49322351,0.00013698,2]
[360824572,1747044645629,-99.50677649,0.00013698,2]
[360824573,1747044645639,-400.0,0.00013698,2]
[360824574,1747044645648,-283.38165814,0.00013698,2]
[360824575,1747044645734,-116.61834186,0.00013698,2]
[360824576,1747044645745,-400.0,0.00013698,2]
[360824577,1747044645755,-400.0,0.00013698,2]
[360824578,1747044645765,-400.0,0.00013698,2]
[360824579,1747044645775,-204.81390143,0.00013698,2]
[360824580,1747044645784,-349.90999998,0.00013698,2]
[360824581,1747044645794,-400.0,0.00013698,2]
[360824582,1747044645803,-400.0,0.00013698,2]
[360824583,1747044645816,-400.0,0.00013698,2]
[360824584,1747044645826,-400.0,0.00013698,2]
[360824585,1747044645835,-400.0,0.00013698,2]
[360824586,1747044645845,-400.0,0.00013698,2]
[360824587,1747044645855,-376.62326472,0.00013698,2]
[360824588,1747044645864,-501.82898651,0.00013698,2]
[360824589,1747044645876,-400.0,0.00013698,2]
[360824590,1747044645886,-400.0,0.00013698,2]
[360824591,1747044645895,-400.0,0.00013698,2]
[360824592,1747044645905,-400.0,0.00013698,2]
[360824593,1747044645915,-400.0,0.00013698,2]
[360824594,1747044645924,-177.8895873,0.00013698,2]
[360824595,1747044645934,-400.0,0.00013698,2]
[360824596,1747044645943,-400.0,0.00013698,2]
[360824597,1747044645952,-57.65031547,0.00013698,2]
[360824598,1747044645967,-342.34968453,0.00013698,2]
[360824599,1747044645976,-400.0,0.00013698,2]
[360824600,1747044645990,-400.0,0.00013698,2]
[360824601,1747044646004,-400.0,0.00013698,2]
[360824602,1747044646017,-309.87037547,0.00013698,2]
[360824603,1747044646037,-120.25509691,0.00013698,2]
[360824604,1747044646048,-179.74490609,0.00013698,2]
[360824612,1747044737084,-177.7386183,0.00012112,2]
[360824613,1747044742336,-142.56800308,0.00012112,2]
[360824614,1747044742374,31.66621609,0.00012112,2]
[360824615,1747044757513,-168.65873174,0.00012112,2]
[360824616,1747044772039,-215.03402899,0.00012111,2]
[360824617,1747044788858,-253.182332,0.00012111,2]
[360824618,1747044802251,-31.78363901,0.00012111,2]
[360824619,1747044802279,-135.63062393,0.00012111,2]
[360824620,1747044817339,-166.66315328,0.00012111,2]
[360824621,1747044832306,-197.70622279,0.00012111,2]
[360824622,1747044832334,-36.83027655,0.00012111,2]
[360824623,1747044835585,1246.77,0.00010829,2]
[360824624,1747044847840,-250.0,0.00012111,2]
[360824627,1747045154915,4846.73831612,0.00015,7]
[360824628,1747045179675,150.0,0.00013699,7]
[360824631,1747045438357,-150.0,0.00012105,2]
[360824633,1747045441896,150.0,0.00012104,2]
[360824634,1747045441947,300.0,0.00012104,2]
[360824635,1747045515192,702.80322312,0.000121,30]
[360824636,1747045520588,6044.5371997,9e-05,2]
[360824637,1747045526766,762.50865173,0.000108,2]
[360824638,1747045555089,15012.0,0.00015,10]
[360824639,1747045556092,503.03868951,6.94e-05,2]
[360824642,1747045594809,-292.60135661,0.00012102,2]
[360824644,1747045599409,-35.74353946,0.00012102,2]
[360824645,1747045599439,-262.62034991,0.00012102,2]
[360824648,1747045605091,-205.14971063,0.00012102,2]
[360824650,1747045608672,-32.22993946,0.00012102,2]
[360824651,1747045608703,-221.8710692,0.00012102,2]
[360824653,1747045612227,-179.61765318,0.00012102,2]
[360824654,1747045613139,-98.51127762,0.00012102,2]
[360824655,1747045613170,-500.0,0.00012102,2]
[360824656,1747045613202,-500.0,0.00012102,2]
[360824657,1747045613233,-475.38823503,0.00012102,2]
[360824659,1747045619887,2229.03915752,0.00015,14]
[360824667,1747045680971,1118.19151449,0.00015,10]
[360824669,1747045702853,59828.80089382,0.00012,30]
[360824670,1747045706965,1870.85006395,0.0001,2]
[360824671,1747045709013,379.37703833,7.888e-05,2]
[360824680,1747045758777,-150.0,0.00012101,2]
[360824681,1747045758808,-139.24933179,0.00012101,2]
[360824682,1747045763905,-201.92516697,0.00012101,2]
[360824696,1747045832042,-300.0,0.000121,2]
[360824697,1747045832053,-185.0,0.000121,2]
[360824698,1747045832064,-1015.0,0.000121,2]
[360824699,1747045832075,-150.0,0.000121,2]
[360824700,1747045832084,-300.0,0.000121,2]
[360824701,1747045832095,-250.0,0.00012101,2]
[360824702,1747045832105,-158.82550124,0.00012101,2]
[360824703,1747045832114,-500.0,0.00012101,2]
[360824704,1747045832123,-500.0,0.00012101,2]
[360824705,1747045832134,-500.0,0.00012101,2]
[360824706,1747045832144,-500.0,0.00012101,2]
[360824707,1747045832156,-500.0,0.00012101,2]
[360824708,1747045832166,-500.0,0.00012101,2]
[360824709,1747045832175,-222.25978602,0.00012101,2]
[360824710,1747045832185,-500.0,0.00012101,2]
[360824711,1747045832194,-500.0,0.00012101,2]
[360824712,1747045832204,-267.09436721,0.00012101,2]
[360824713,1747045832213,-156.13484192,0.00012101,2]
[360824714,1747045832226,-343.86515808,0.00012101,2]
[360824715,1747045832235,-500.0,0.00012101,2]
[360824716,1747045832245,-500.0,0.00012101,2]
[360824717,1747045832255,-500.0,0.00012101,2]
[360824718,1747045832264,-500.0,0.00012101,2]
[360824719,1747045832273,-500.0,0.00012101,2]
[360824720,1747045832283,-297.59415632,0.00012101,2]
[360824721,1747045832396,-202.40584368,0.00012101,2]
[360824722,1747045832406,-500.0,0.00012101,2]
[360824723,1747045832415,-500.0,0.00012101,2]
[360824724,1747045832424,-500.0,0.00012101,2]
[360824725,1747045832433,-500.0,0.00012101,2]
[360824726,1747045832442,-500.0,0.00012101,2]
[360824727,1747045832451,-500.0,0.00012101,2]
[360824728,1747045832461,-500.0,0.00012101,2]
[360824729,1747045832470,-500.0,0.00012101,2]
[360824730,1747045832479,-500.0,0.00012101,2]
[360824731,1747045832488,-500.0,0.00012101,2]
[360824732,1747045832497,-500.0,0.00012101,2]
[360824733,1747045832506,-2569.77403886,0.0001211,2]
[360824734,1747045832516,-639.87,0.0001217,2]
[360824735,1747045832525,-150.0,0.00012188,2]
[360824736,1747045832725,-23900.0,0.00012309,2]
[360824737,1747045832734,-250.0,0.00012344,2]
[360824738,1747045832744,-556.8,0.00012371,2]
[360824739,1747045832752,-393.04,0.00012451,2]
[360824740,1747045832762,-297.68189696,0.000125,2]
[360824741,1747045832771,-1000.0,0.00012539,2]
[360824742,1747045832780,-703.87,0.00012558,2]
[360824743,1747045832789,-890.3,0.00012579,2]
[360824744,1747045832798,-166.66,0.00012593,2]
[360824745,1747045832807,-151.0,0.00012614,2]
[360824746,1747045832816,-151.0,0.00012614,2]
[360824747,1747045832825,-151.0,0.00012614,2]
[360824748,1747045832834,-151.0,0.00012614,2]
[360824749,1747045832846,-151.0,0.00012614,2]
[360824750,1747045832855,-151.0,0.00012614,2]
[360824751,1747045832864,-151.0,0.00012614,2]
[360824752,1747045832874,-151.0,0.00012614,2]
[360824753,1747045832882,-151.0,0.00012614,2]
[360824754,1747045832891,-151.0,0.00012614,2]
[360824755,1747045832900,-151.0,0.00012614,2]
[360824756,1747045832909,-145.19040444,0.00012614,2]
[360824757,1747045832920,-5.80959556,0.00012614,2]
[360824758,1747045832930,-151.0,0.00012614,2]
[360824759,1747045832938,-151.0,0.00012614,2]
[360824760,1747045832947,-151.0,0.00012614,2]
[360824761,1747045832956,-151.0,0.00012614,2]
[360824762,1747045832965,-151.0,0.00012614,2]
[360824763,1747045832974,-151.0,0.00012614,2]
[360824764,1747045832983,-151.0,0.00012614,2]
[360824765,1747045832992,-151.0,0.00012614,2]
[360824766,1747045833001,-9740.45,0.00012621,2]
[360824767,1747045833010,-299.99,0.00012621,2]
[360824768,1747045833020,-1394.1,0.00012621,2]
[360824769,1747045833030,-8218.16280444,0.00012621,2]
[360824770,1747045833351,-1502.46852206,0.00012621,2]
[360824771,1747045833362,-279.3586735,0.00012621,2]
[360824772,1747045833372,-137.8014357,0.00012621,2]
[360824773,1747045833384,-563.70807734,0.00012621,2]
[360824774,1747045836856,-500.0,0.00012521,2]
[360824775,1747045836866,-369.81048696,0.00012621,2]
[360824776,1747045836875,-173.00936997,0.00012621,2]
[360824787,1747045837980,-921.16063003,0.00012621,2]
[360824788,1747045837990,-150.99,0.00012621,2]
[360824789,1747045837999,-390.47,0.00012621,2]
[360824790,1747045838008,-4336.4486078,0.00012633,2]
[360824891,1747045840133,-9908.88424292,0.00012633,2]
[360824893,1747045840143,-163.59,0.00012652,2]
[360824895,1747045840154,-4284.23365257,0.00013,2]
[360824897,1747045840164,-2000.0,0.00013002,2]
[360824899,1747045840174,-207.4,0.00013003,2]
[360824901,1747045840183,-166.66,0.00013008,2]
[360824903,1747045840192,-3527.16226275,0.0001305,2]
[360824904,1747045840203,-1246.77,0.00013093,2]
[360824906,1747045840212,-255.0,0.00013177,2]
[360824908,1747045840222,-183.818931,0.00013265,2]
[360824910,1747045840233,-1154.21418619,0.00013273,2]
[360824912,1747045840243,-1238.84843134,0.00013274,2]
[360824914,1747045840253,-420.0,0.00013282,2]
[360824916,1747045840263,-420.0,0.00013282,2]
[360824918,1747045840273,-1680.0,0.0001331,2]
[360824920,1747045840283,-250.0,0.0001331,2]
[360824922,1747045840294,-166.66,0.00013424,2]
[360824924,1747045840303,-183.818931,0.00013486,2]
[360824926,1747045840313,-9661.3715,0.00013498,2]
[360824927,1747045840323,-7075.88083036,0.00013582,2]
[360824928,1747045840337,-5908.09393582,0.00013582,2]
[360824929,1747045840351,-798.776,0.00013597,2]
[360824931,1747045840361,-451.8722,0.00013598,2]
[360824933,1747045840371,-6377.5587,0.00013598,2]
[360824935,1747045840380,-16042.7148,0.00013598,2]
[360824937,1747045840390,-710.46143335,0.00013598,2]
[360824941,1747045840418,-1648.20916665,0.00013598,2]
[360824943,1747045840428,-3093.14178157,0.00013598,2]
[360824945,1747045840439,-12877.95681843,0.00013598,2]
[360824947,1747045840448,-650.55335423,0.00013598,2]
[360824949,1747045840461,-806.451,0.00013598,2]
[360824951,1747045840471,-1721.868,0.00013598,2]
[360824953,1747045840479,-1000.0,0.00013598,2]
[360824955,1747045840488,-191.30610265,0.00013599,2]
[360824957,1747045840497,-460.1024592,0.00013629,2]
[360824959,1747045840506,-500.0,0.00013644,2]
[360824961,1747045840516,-500.0,0.00013671,2]
[360824963,1747045840525,-628.0,0.00013683,2]
[360824965,1747045840534,-599.31073379,0.00013683,2]
[360824990,1747045840758,-0.00737225,0.00013683,2]
[360825115,1747045842981,-174.87772366,0.00013683,2]
[360825116,1747045843032,-23.8041703,0.00013683,2]
[360825117,1747045843042,-552.0,0.00013683,2]
[360825118,1747045843051,-444.8958297,0.00013683,2]
[360825119,1747045843122,1304.53335216,0.00014992,5]
[360825120,1747045843171,1304.53335216,0.00014999,5]
[360825121,1747045843211,200.09503612,0.00014992,5]
[360825122,1747045843224,-328.74290502,0.00013683,2]
[360825123,1747045843240,-475.36126528,0.00013683,2]
[360825124,1747045843250,-1456.0,0.00013683,2]
[360825125,1747045843259,-918.0,0.00013683,2]
[360825126,1747045843268,-938.83873572,0.00013683,2]
[360825127,1747045843299,1304.53335217,0.00014999,5]
[360825149,1747045846110,-207.16126428,0.00013683,2]
[360825150,1747045846120,-5939.0,0.00013683,2]
[360825151,1747045846130,-504.53202624,0.00013683,2]
[360825152,1747045846147,-5210.0,0.00013683,2]
[360825154,1747045846407,-1103.46797376,0.00013683,2]
[360825156,1747045846416,-1304.0,0.00013683,2]
[360825158,1747045846425,-154.0,0.00013683,2]
[360825160,1747045846434,-3919.0,0.00013683,2]
[360825162,1747045846444,-879.0,0.00013683,2]
[360825164,1747045846453,-1000.0,0.00013697,2]
[360825165,1747045846462,-281.821356,0.00013698,2]
[360825166,1747045846471,-200.0,0.00013698,2]
[360825167,1747045846480,-400.0,0.00013698,2]
[360825168,1747045846490,-400.0,0.00013698,2]
[360825169,1747045846499,-461.29285508,0.00013698,2]
[360825170,1747045846509,-400.0,0.00013698,2]
[360825171,1747045846518,-400.0,0.00013698,2]
[360825172,1747045846527,-400.0,0.00013698,2]
[360825173,1747045846537,-510.78662566,0.00013698,2]
[360825174,1747045846546,-400.0,0.00013698,2]
[360825175,1747045846555,-400.0,0.00013698,2]
[360825176,1747045846564,-538.0,0.00013698,2]
[360825177,1747045846573,-400.0,0.00013698,2]
[360825178,1747045846582,-400.0,0.00013698,2]
[360825179,1747045846592,-400.0,0.00013698,2]
[360825180,1747045846603,-504.36103769,0.00013698,2]
[360825181,1747045846613,-400.0,0.00013698,2]
[360825182,1747045846622,-400.0,0.00013698,2]
[360825183,1747045846631,-400.0,0.00013698,2]
[360825184,1747045846641,-400.0,0.00013698,2]
[360825185,1747045846650,-400.0,0.00013698,2]
[360825186,1747045846659,-400.0,0.00013698,2]
[360825187,1747045846668,-400.0,0.00013698,2]
[360825188,1747045846677,-505.64886715,0.00013698,2]
[360825189,1747045846687,-400.0,0.00013698,2]
[360825190,1747045846696,-400.0,0.00013698,2]
[360825191,1747045846705,-400.0,0.00013698,2]
[360825192,1747045846714,-400.0,0.00013698,2]
[360825193,1747045846724,-400.0,0.00013698,2]
[360825194,1747045846733,-400.0,0.00013698,2]
[360825195,1747045846742,-400.0,0.00013698,2]
[360825196,1747045846751,-400.0,0.00013698,2]
[360825197,1747045846760,-400.0,0.00013698,2]
[360825198,1747045846770,-400.0,0.00013698,2]
[360825199,1747045846779,-400.0,0.00013698,2]
[360825200,1747045846788,-250.0,0.00013698,2]
[360825201,1747045846797,-322.14619869,0.00013698,2]
[360825202,1747045846807,-400.0,0.00013698,2]
[360825203,1747045846816,-400.0,0.00013698,2]
[360825204,1747045846826,-400.0,0.00013698,2]
[360825205,1747045846836,-400.0,0.00013698,2]
[360825206,1747045846845,-400.0,0.00013698,2]
[360825207,1747045846859,-400.0,0.00013698,2]
[360825208,1747045846868,-401.61347642,0.00013698,2]
[360825209,1747045846877,-403.88580754,0.00013698,2]
[360825210,1747045846886,-450.0,0.00013698,2]
[360825211,1747045846895,-545.07961273,0.00013698,2]
[360825212,1747045846904,-405.69546812,0.00013698,2]
[360825213,1747045846914,-159.30037565,0.00013698,2]
[360825214,1747045846923,-400.0,0.00013698,2]
[360825215,1747045846932,-158.36004447,0.00013698,2]
[360825216,1747045846942,-400.0,0.00013698,2]
[360825217,1747045846951,-402.12906984,0.00013698,2]
[360825218,1747045846960,-400.0,0.00013698,2]
[360825219,1747045846970,-400.0,0.00013698,2]
[360825220,1747045846979,-400.0,0.00013698,2]
[360825221,1747045846989,-400.0,0.00013698,2]
[360825222,1747045846998,-406.35957689,0.00013698,2]
[360825223,1747045847007,-400.0,0.00013698,2]
[360825224,1747045847016,-400.0,0.00013698,2]
[360825225,1747045847026,-403.60134401,0.00013698,2]
[360825226,1747045847035,-151.0,0.00013698,2]
[360825227,1747045847043,-246.23185,0.00013698,2]
[360825228,1747045847052,-404.58472128,0.00013698,2]
[360825229,1747045847062,-401.18305125,0.00013698,2]
[360825230,1747045847071,-400.0,0.00013698,2]
[360825231,1747045847079,-400.0,0.00013698,2]
[360825232,1747045847089,-400.0,0.00013698,2]
[360825233,1747045847102,-404.56077067,0.00013698,2]
[360825234,1747045847111,-412.32,0.00013698,2]
[360825235,1747045847121,-400.0,0.00013698,2]
[360825236,1747045847130,-400.0,0.00013698,2]
[360825237,1747045847139,-400.0,0.00013698,2]
[360825238,1747045847148,-160.34145171,0.00013698,2]
[360825239,1747045847160,-400.0,0.00013698,2]
[360825240,1747045847169,-412.14761943,0.00013698,2]
[360825241,1747045847178,-400.0,0.00013698,2]
[360825242,1747045847188,-400.0,0.00013698,2]
[360825243,1747045847198,-420.62158628,0.00013698,2]
[360825244,1747045847207,-400.0,0.00013698,2]
[360825245,1747045847217,-400.0,0.00013698,2]
[360825246,1747045847228,-400.0,0.00013698,2]
[360825247,1747045847239,-400.0,0.00013698,2]
[360825248,1747045847248,-400.0,0.00013698,2]
[360825249,1747045847258,-400.0,0.00013698,2]
[360825250,1747045847267,-400.0,0.00013698,2]
[360825251,1747045847276,-400.0,0.00013698,2]
[360825252,1747045847285,-400.0,0.00013698,2]
[360825253,1747045847295,-150.39055178,0.00013698,2]
[360825254,1747045847304,-417.93034343,0.00013698,2]
[360825255,1747045847313,-400.0,0.00013698,2]
[360825256,1747045847322,-544.34549969,0.00013698,2]
[360825257,1747045847331,-418.04243425,0.00013698,2]
[360825258,1747045847340,-401.17973101,0.00013698,2]
[360825259,1747045847353,-155.998766,0.00013698,2]
[360825260,1747045847362,-151.0,0.00013698,2]
[360825261,1747045847371,-157.11879838,0.00013698,2]
[360825262,1747045847381,-251.122203,0.00013698,2]
[360825263,1747045847390,-151.0,0.00013698,2]
[360825264,1747045847398,-151.0,0.00013698,2]
[360825265,1747045847408,-151.0,0.00013698,2]
[360825266,1747045847417,-663.6,0.00013698,2]
[360825267,1747045847426,-1732.58666,0.00013698,2]
[360825268,1747045847435,-151.0,0.00013699,2]
[360825269,1747045847444,-1000.0,0.00013699,2]
[360825270,1747045847453,-1000.0,0.00013699,2]
[360825271,1747045847462,-1000.0,0.00013699,2]
[360825272,1747045847471,-1000.0,0.00013699,2]
[360825273,1747045847481,-1000.0,0.00013699,2]
[360825274,1747045847490,-1000.0,0.00013699,2]
[360825275,1747045847499,-1000.0,0.00013699,2]
[360825276,1747045847507,-1000.0,0.00013699,2]
[360825277,1747045847516,-1000.0,0.00013699,2]
[360825278,1747045847525,-1000.0,0.00013699,2]
[360825279,1747045847534,-1000.0,0.00013699,2]
[360825280,1747045847543,-1000.0,0.00013699,2]
[360825281,1747045847553,-1000.0,0.00013699,2]
[360825282,1747045847562,-566.6116639,0.00013699,2]
[360825283,1747045847575,-433.3883361,0.00013699,2]
[360825284,1747045847585,-867.8723519,0.00013699,2]
[360825285,1747045847598,-132.1276481,0.00013699,2]
[360825286,1747045847607,-1000.0,0.00013699,2]
[360825287,1747045847615,-1000.0,0.00013699,2]
[360825288,1747045847624,-585.0,0.00013699,2]
[360825289,1747045847634,-6058.95,0.00013699,2]
[360825290,1747045847643,-275.733151,0.00013699,2]
[360825291,1747045847652,-275.733151,0.00013699,2]
[360825292,1747045847661,-275.733151,0.00013699,2]
[360825293,1747045847670,-275.733151,0.00013699,2]
[360825294,1747045847679,-275.733151,0.00013699,2]
[360825295,1747045847688,-275.733151,0.00013699,2]
[360825296,1747045847697,-275.733151,0.00013699,2]
[360825297,1747045847706,-275.733151,0.00013699,2]
[360825298,1747045847715,-275.733151,0.00013699,2]
[360825299,1747045847724,-275.733151,0.00013699,2]
[360825300,1747045847733,-275.733151,0.00013699,2]
[360825301,1747045847742,-275.733151,0.00013699,2]
[360825302,1747045847751,-275.733151,0.00013699,2]
[360825303,1747045847760,-275.733151,0.00013699,2]
[360825304,1747045847770,-275.733151,0.00013699,2]
[360825305,1747045847779,-275.733151,0.00013699,2]
[360825306,1747045847788,-275.733151,0.00013699,2]
[360825307,1747045847798,-275.733151,0.00013699,2]
[360825308,1747045847807,-275.733151,0.00013699,2]
[360825309,1747045847815,-275.733145,0.00013699,2]
[360825310,1747045847825,-1000.0,0.00013699,2]
[360825311,1747045847835,-1000.0,0.00013699,2]
[360825312,1747045847848,-1000.0,0.00013699,2]
[360825313,1747045847858,-1000.0,0.00013699,2]
[360825314,1747045847867,-1000.0,0.00013699,2]
[360825315,1747045847876,-1000.0,0.00013699,2]
[360825316,1747045847885,-1000.0,0.00013699,2]
[360825317,1747045847894,-1000.0,0.00013699,2]
[360825318,1747045847903,-1000.0,0.00013699,2]
[360825319,1747045847912,-1000.0,0.00013699,2]
[360825320,1747045847921,-1000.0,0.00013699,2]
[360825321,1747045847930,-1000.0,0.00013699,2]
[360825322,1747045847939,-1000.0,0.00013699,2]
[360825323,1747045847948,-1000.0,0.00013699,2]
[360825324,1747045847957,-1000.0,0.00013699,2]
[360825325,1747045847966,-1000.0,0.00013699,2]
[360825326,1747045847975,-501.07,0.00013699,2]
[360825327,1747045847984,-151.0,0.00013699,2]
[360825328,1747045847993,-806.67,0.00013699,2]
[360825329,1747045848002,-500.0,0.00013699,2]
[360825330,1747045848011,-200.0,0.00013699,2]
[360825331,1747045848020,-1000.0,0.00013699,2]
[360825332,1747045848029,-1000.0,0.00013699,2]
[360825333,1747045848038,-1000.0,0.00013699,2]
[360825334,1747045848047,-1000.0,0.00013699,2]
[360825335,1747045848056,-1000.0,0.00013699,2]
[360825336,1747045848065,-1000.0,0.00013699,2]
[360825337,1747045848075,-1000.0,0.00013699,2]
[360825338,1747045848085,-1000.0,0.00013699,2]
[360825339,1747045848094,-1000.0,0.00013699,2]
[360825340,1747045848105,-1000.0,0.00013699,2]
[360825341,1747045848116,-1000.0,0.00013699,2]
[360825342,1747045848126,-1000.0,0.00013699,2]
[360825343,1747045848136,-1000.0,0.00013699,2]
[360825344,1747045848146,-1000.0,0.00013699,2]
[360825345,1747045848156,-1000.0,0.00013699,2]
[360825346,1747045848167,-1000.0,0.00013699,2]
[360825347,1747045848177,-1000.0,0.00013699,2]
[360825348,1747045848186,-550.5193379,0.00013699,2]
[360825351,1747046000451,894.66254136,0.00010888,2]
[360825352,1747046000473,274.38745864,0.00010888,2]
[360825353,1747046017353,-184.34526173,0.00012097,2]
[360825354,1747046032315,-115.65473827,0.00012097,2]
[360825355,1747046032344,-141.76392967,0.00012098,2]
[360825356,1747046047337,-164.53570043,0.00012097,2]
[360825357,1747046063880,-135.46429957,0.00012097,2]
[360825358,1747046063909,-227.53620662,0.00012098,2]
[360825361,1747046099922,10396.0795046,0.00015,7]
[360825362,1747046107345,-152.56143732,0.00012097,2]
[360825363,1747046123596,-152.56143732,0.00012097,2]
[360825364,1747046137954,-283.99014983,0.00012097,2]